lending/lending_fUSD_20260211
["ID","MTS","AMOUNT","RATE_DAILY","PERIOD"]
[405085167,1770772246175,-853.40558214,0.00040021,2]
[405085168,1770772246185,-305.2799278,0.00040021,2]
[405085169,1770772246195,-300.0,0.00040021,2]
[405085170,1770772246206,-882.1295105,0.00040021,2]
[405085171,1770772246219,-300.0,0.00040021,2]
[405085172,1770772246229,-1557.26436786,0.00040021,2]
[405085173,1770772246249,-300.0,0.00040021,2]
[405085174,1770772246261,-300.0,0.00040021,2]
[405085175,1770772246270,-300.0,0.00040021,2]
[405085176,1770772246280,-306.45531392,0.00040021,2]
[405085177,1770772246290,-300.0,0.00040021,2]
[405085178,1770772246302,-300.0,0.00040021,2]
[405085179,1770772246320,-457.56482313,0.00040021,2]
[405085180,1770772246330,-300.0,0.00040021,2]
[405085181,1770772246340,-300.0,0.00040021,2]
[405085182,1770772246349,-300.0,0.00040021,2]
[405085183,1770772246359,-300.0,0.00040021,2]
[405085184,1770772246370,-370.41196631,0.00040021,2]
[405085185,1770772246380,-300.0,0.00040021,2]
[405085186,1770772246389,-300.0,0.00040021,2]
[405085187,1770772246399,-381.19570873,0.00040021,2]
[405085188,1770772246409,-300.0,0.00040021,2]
[405085189,1770772246419,-300.0,0.00040021,2]
[405085190,1770772246428,-300.0,0.00040021,2]
[405085191,1770772246438,-300.0,0.00040021,2]
[405085193,1770772246447,-300.0,0.00040021,2]
[405085195,1770772246457,-572.39029516,0.00040021,2]
[405085196,1770772246467,-300.0,0.00040021,2]
[405085197,1770772246476,-300.0,0.00040021,2]
[405085198,1770772246486,-1079.1570908,0.00040021,2]
[405085199,1770772246496,-300.0,0.00040021,2]
[405085200,1770772246506,-300.0,0.00040021,2]
[405085201,1770772246515,-853.40558214,0.00040021,2]
[405085202,1770772246525,-305.2799278,0.00040021,2]
[405085203,1770772246534,-300.0,0.00040021,2]
[405085204,1770772246544,-882.1295105,0.00040021,2]
[405085205,1770772246554,-300.0,0.00040021,2]
[405085206,1770772246563,-1667.46563214,0.00040021,2]
[405085207,1770772246572,-300.0,0.00040021,2]
[405085208,1770772246582,-300.0,0.00040021,2]
[405085209,1770772246592,-300.0,0.00040021,2]
[405085211,1770772246600,-306.45531392,0.00040021,2]
[405085213,1770772246610,-300.0,0.00040021,2]
[405085214,1770772246620,-300.0,0.00040021,2]
[405085215,1770772246630,-457.56482313,0.00040021,2]
[405085216,1770772246641,-300.0,0.00040021,2]
[405085217,1770772246654,-300.0,0.00040021,2]
[405085218,1770772246663,-300.0,0.00040021,2]
[405085219,1770772246673,-370.41196631,0.00040021,2]
[405085220,1770772246683,-300.0,0.00040021,2]
[405085221,1770772246693,-331.30172563,0.00040021,2]
[405085222,1770772246702,-300.0,0.00040021,2]
[405085223,1770772246712,-300.0,0.00040021,2]
[405085224,1770772246722,-300.0,0.00040021,2]
[405085225,1770772246732,-300.0,0.00040021,2]
[405085226,1770772246741,-300.0,0.00040021,2]
[405085227,1770772246750,-300.0,0.00040021,2]
[405085228,1770772246760,-572.39029516,0.00040021,2]
[405085229,1770772246769,-1079.1570908,0.00040021,2]
[405085230,1770772246780,-300.0,0.00040021,2]
[405085231,1770772246789,-853.40558214,0.00040021,2]
[405085232,1770772246799,-326.63043662,0.00040021,2]
[405085233,1770772246808,-353.88746533,0.00040021,2]
[405085234,1770772246818,-305.2799278,0.00040021,2]
[405085235,1770772246828,-882.1295105,0.00040021,2]
[405085236,1770772246838,-381.24404749,0.00040021,2]
[405085237,1770772246847,-300.0,0.00040021,2]
[405085238,1770772246856,-426.1581956,0.00040021,2]
[405085239,1770772246866,-493.32889269,0.00040021,2]
[405085240,1770772246876,-306.45531392,0.00040021,2]
[405085241,1770772246886,-314.56844785,0.00040021,2]
[405085242,1770772246896,-537.69871206,0.00040021,2]
[405085243,1770772246906,-457.56482313,0.00040021,2]
[405085244,1770772246916,-300.0,0.00040021,2]
[405085245,1770772246926,-300.0,0.00040021,2]
[405085246,1770772246936,-568.78564891,0.00040021,2]
[405085247,1770772246946,-370.41196631,0.00040021,2]
[405085248,1770772246955,-300.0,0.00040021,2]
[405085249,1770772246964,-300.0,0.00040021,2]
[405085250,1770772246974,-300.0,0.00040021,2]
[405085251,1770772246983,-300.0,0.00040021,2]
[405085252,1770772246992,-511.46787178,0.00040021,2]
[405085253,1770772247001,-300.0,0.00040021,2]
[405085254,1770772247011,-300.0,0.00040021,2]
[405085255,1770772247020,-572.39029516,0.00040021,2]
[405085256,1770772247030,-300.0,0.00040021,2]
[405085257,1770772247039,-1079.1570908,0.00040021,2]
[405085258,1770772247049,-853.40558214,0.00040021,2]
[405085259,1770772247059,-305.2799278,0.00040021,2]
[405085260,1770772247068,-882.1295105,0.00040021,2]
[405085261,1770772247078,-576.01425246,0.00040021,2]
[405085262,1770772247087,-306.45531392,0.00040021,2]
[405085263,1770772247097,-457.56482313,0.00040021,2]
[405085264,1770772247106,-300.0,0.00040021,2]
[405085265,1770772247116,-300.0,0.00040021,2]
[405085266,1770772247125,-370.41196631,0.00040021,2]
[405085267,1770772247135,-300.0,0.00040021,2]
[405085268,1770772247144,-300.0,0.00040021,2]
[405085269,1770772247153,-407.88815097,0.00040021,2]
[405085270,1770772247163,-300.0,0.00040021,2]
[405085271,1770772247173,-300.0,0.00040021,2]
[405085272,1770772247182,-300.0,0.00040021,2]
[405085273,1770772247192,-572.39029516,0.00040021,2]
[405085274,1770772247201,-300.0,0.00040021,2]
[405085275,1770772247210,-1079.1570908,0.00040021,2]
[405085276,1770772247220,-853.40558214,0.00040021,2]
[405085277,1770772247230,-305.2799278,0.00040021,2]
[405085278,1770772247239,-882.1295105,0.00040021,2]
[405085279,1770772247249,-306.45531392,0.00040021,2]
[405085280,1770772247258,-457.56482313,0.00040021,2]
[405085281,1770772247267,-300.0,0.00040021,2]
[405085282,1770772247276,-300.0,0.00040021,2]
[405085283,1770772247286,-370.41196631,0.00040021,2]
[405085284,1770772247295,-300.0,0.00040021,2]
[405085285,1770772247304,-300.0,0.00040021,2]
[405085286,1770772247314,-300.0,0.00040021,2]
[405085287,1770772247323,-367.99878657,0.00040021,2]
[405085288,1770772247333,-515.64613153,0.00040021,2]
[405085289,1770772247342,-572.39029516,0.00040021,2]
[405085290,1770772247351,-300.0,0.00040021,2]
[405085291,1770772247361,-1079.1570908,0.00040021,2]
[405085292,1770772247371,-2211.13,0.000401,14]
[405085293,1770772247380,-17200.94776355,0.00040163,2]
[405085294,1770772247390,-172.52,0.00040183,120]
[405085295,1770772247399,-350.0,0.00040199,2]
[405085296,1770772247408,-800.0,0.00040208,13]
[405085297,1770772247417,-800.0,0.00040208,13]
[405085298,1770772247426,-800.0,0.00040208,13]
[405085299,1770772247435,-800.0,0.00040208,13]
[405085300,1770772247444,-800.0,0.00040208,13]
[405085301,1770772247453,-800.0,0.00040208,13]
[405085302,1770772247462,-209.0,0.00040208,13]
[405085303,1770772247472,-800.0,0.00040208,13]
[405085304,1770772247481,-800.0,0.00040208,13]
[405085305,1770772247491,-800.0,0.00040208,13]
[405085306,1770772247500,-800.0,0.00040208,13]
[405085307,1770772247510,-800.0,0.00040208,13]
[405085308,1770772247519,-800.0,0.00040208,13]
[405085309,1770772247529,-800.0,0.00040208,13]
[405085310,1770772247538,-800.0,0.00040208,13]
[405085311,1770772247548,-800.0,0.00040208,13]
[405085312,1770772247557,-800.0,0.00040208,13]
[405085313,1770772247568,-800.0,0.00040208,13]
[405085314,1770772247577,-800.0,0.00040208,13]
[405085315,1770772247587,-800.0,0.00040208,13]
[405085316,1770772247596,-800.0,0.00040208,13]
[405085317,1770772247605,-800.0,0.00040208,13]
[405085318,1770772247615,-800.0,0.00040208,13]
[405085319,1770772247624,-800.0,0.00040208,13]
[405085320,1770772247634,-800.0,0.00040208,13]
[405085321,1770772247644,-800.0,0.00040208,13]
[405085322,1770772247656,-800.0,0.00040208,13]
[405085323,1770772247665,-800.0,0.00040208,13]
[405085324,1770772247675,-800.0,0.00040208,13]
[405085325,1770772247684,-800.0,0.00040208,13]
[405085326,1770772247694,-800.0,0.00040208,13]
[405085327,1770772247703,-800.0,0.00040208,13]
[405085328,1770772247712,-800.0,0.00040208,13]
[405085329,1770772247723,-800.0,0.00040208,13]
[405085330,1770772247733,-800.0,0.00040208,13]
[405085331,1770772247742,-800.0,0.00040208,13]
[405085332,1770772247752,-800.0,0.00040208,13]
[405085333,1770772247761,-800.0,0.00040208,13]
[405085334,1770772247771,-631.0,0.00040208,13]
[405085335,1770772247780,-150.0,0.00040214,2]
[405085336,1770772247789,-150.0,0.00040214,2]
[405085337,1770772247799,-150.0,0.00040214,2]
[405085338,1770772247808,-150.0,0.00040214,2]
[405085339,1770772247817,-1287.0,0.00040214,2]
[405085340,1770772247826,-1336.0,0.00040214,2]
[405085341,1770772247835,-617.0,0.00040214,2]
[405085342,1770772247846,-3486.0,0.00040214,2]
[405085343,1770772247855,-1273.0,0.00040214,2]
[405085344,1770772247865,-1207.0,0.00040214,2]
[405085345,1770772247875,-918.0,0.00040214,2]
[405085346,1770772247884,-505.0,0.00040232,11]
[405085347,1770772247894,-350.0,0.00040293,2]
[405085348,1770772247903,-848.2,0.000403,14]
[405085349,1770772247913,-22499.98,0.00040375,120]
[405085350,1770772247923,-12500.0,0.00040375,120]
[405085351,1770772247933,-22500.0,0.00040375,120]
[405085352,1770772247944,-200.0,0.000404,7]
[405085353,1770772247954,-200.0,0.000404,7]
[405085354,1770772247963,-525.0,0.00040402,60]
[405085355,1770772247973,-150.0,0.00040406,2]
[405085356,1770772247982,-500.0,0.000405,45]
[405085357,1770772247992,-500.0,0.000405,45]
[405085358,1770772248001,-500.0,0.000405,45]
[405085359,1770772248010,-500.0,0.000405,45]
[405085360,1770772248019,-500.0,0.000405,45]
[405085361,1770772248030,-500.0,0.000405,45]
[405085362,1770772248039,-500.0,0.000405,45]
[405085363,1770772248049,-500.0,0.000405,45]
[405085364,1770772248059,-500.0,0.000405,45]
[405085365,1770772248069,-500.0,0.000405,45]
[405085366,1770772248078,-500.0,0.000405,45]
[405085367,1770772248087,-500.0,0.000405,45]
[405085368,1770772248098,-256.701042,0.000405,20]
[405085369,1770772248108,-1000.0,0.00040548,14]
[405085370,1770772248118,-1000.0,0.00040548,2]
[405085371,1770772248128,-500.0,0.00040636,45]
[405085372,1770772248137,-350.0,0.00040699,2]
[405085373,1770772248147,-577.45563877,0.000407,2]
[405085374,1770772248156,-151.0,0.0004075,120]
[405085375,1770772248166,-151.0,0.0004075,120]
[405085376,1770772248176,-162.145839,0.0004075,120]
[405085377,1770772248188,-151.0,0.0004075,120]
[405085378,1770772248201,-151.0,0.0004075,120]
[405085379,1770772248211,-255.760204,0.0004075,120]
[405085380,1770772248221,-151.0,0.0004075,120]
[405085381,1770772248230,-151.0,0.0004075,120]
[405085382,1770772248240,-151.0,0.0004075,120]
[405085383,1770772248249,-151.527468,0.0004075,120]
[405085384,1770772248259,-151.0,0.0004075,120]
[405085385,1770772248268,-151.527468,0.0004075,120]
[405085386,1770772248277,-309.335196,0.0004075,120]
[405085387,1770772248287,-151.527468,0.0004075,120]
[405085388,1770772248296,-309.335196,0.0004075,120]
[405085389,1770772248305,-309.335196,0.0004075,120]
[405085390,1770772248314,-309.335196,0.0004075,120]
[405085391,1770772248325,-12500.0,0.0004075,120]
[405085392,1770772248334,-22500.0,0.0004075,120]
[405085393,1770772248344,-420.23525653,0.000408,60]
[405085394,1770772248354,-200.0,0.00040804,7]
[405085395,1770772248364,-1000.0,0.00040822,14]
[405085396,1770772248375,-153.0,0.000409,120]
[405085397,1770772248385,-433.45021802,0.000409,120]
[405085398,1770772248394,-52502.04,0.000409,2]
[405085399,1770772248404,-152.0,0.00040903,7]
[405085400,1770772248414,-1000.0,0.00040944,30]
[405085401,1770772248424,-1000.0,0.00040944,30]
[405085402,1770772248433,-1244.7475703,0.00040944,30]
[405085403,1770772248443,-605.42548284,0.00041,30]
[405085404,1770772248453,-500.0,0.00041,45]
[405085405,1770772248463,-10000.0,0.00041,120]
[405085406,1770772248472,-500.0,0.00041,45]
[405085407,1770772248481,-500.0,0.00041,45]
[405085408,1770772248491,-500.0,0.00041,45]
[405085409,1770772248500,-500.0,0.00041,45]
[405085410,1770772248510,-500.0,0.00041,45]
[405085411,1770772248520,-500.0,0.00041,45]
[405085412,1770772248529,-500.0,0.00041,45]
[405085413,1770772248538,-500.0,0.00041,45]
[405085414,1770772248547,-500.0,0.00041,45]
[405085415,1770772248559,-873.51541749,0.00041,5]
[405085416,1770772248572,-200000.0,0.00041,30]
[405085417,1770772248585,-7888.927847,0.00041,120]
[405085418,1770772248596,-2066.53429282,0.00041,35]
[405085419,1770772248605,-1432.042641,0.00041,7]
[405085420,1770772248617,-1219.42982026,0.00041,120]
[405085421,1770772248627,-2211.13,0.00041,14]
[405085422,1770772248637,-1664.67,0.00041,14]
[405085423,1770772248649,-500.0,0.00041,45]
[405085424,1770772248658,-150.0,0.00041047,2]
[405085425,1770772248668,-150.0,0.00041047,2]
[405085426,1770772248679,-273.0,0.00041068,120]
[405085427,1770772248689,-480.9,0.00041068,120]
[405085428,1770772248699,-300.0,0.00041068,22]
[405085429,1770772248709,-185.91,0.00041069,14]
[405085430,1770772248718,-505.0,0.00041078,12]
[405085431,1770772248728,-246.03725099,0.00041095,120]
[405085432,1770772248739,-4103.58,0.00041095,120]
[405085433,1770772248748,-1000.0,0.00041096,14]
[405085434,1770772248915,-500.0,0.00041096,120]
[405085435,1770772248955,-2007.28622654,0.00041096,10]
[405085436,1770772248964,-20271.09,0.00041096,120]
[405085437,1770772248974,-344.87,0.00041096,120]
[405085438,1770772248985,-1000.0,0.00041096,30]
[405085439,1770772248994,-1000.0,0.00041096,30]
[405085440,1770772249004,-1000.0,0.00041096,30]
[405085441,1770772249014,-1000.0,0.00041096,30]
[405085442,1770772249024,-1000.0,0.00041096,30]
[405085443,1770772249035,-1000.0,0.00041096,30]
[405085444,1770772249045,-1000.0,0.00041096,30]
[405085445,1770772249055,-1000.0,0.00041096,30]
[405085446,1770772249064,-1000.0,0.00041096,30]
[405085447,1770772249074,-1000.0,0.00041096,30]
[405085448,1770772249084,-1000.0,0.00041096,30]
[405085449,1770772249094,-1000.0,0.00041096,30]
[405085450,1770772249103,-1000.0,0.00041096,30]
[405085451,1770772249113,-1000.0,0.00041096,30]
[405085452,1770772249124,-1000.0,0.00041096,30]
[405085453,1770772249134,-1000.0,0.00041096,30]
[405085454,1770772249144,-1000.0,0.00041096,30]
[405085455,1770772249153,-1000.0,0.00041096,30]
[405085456,1770772249163,-1000.0,0.00041096,30]
[405085457,1770772249173,-1000.0,0.00041096,30]
[405085458,1770772249183,-1000.0,0.00041096,30]
[405085459,1770772249193,-1000.0,0.00041096,30]
[405085460,1770772249203,-1000.0,0.00041096,30]
[405085461,1770772249213,-1000.0,0.00041096,30]
[405085462,1770772249223,-1000.0,0.00041096,30]
[405085463,1770772249232,-1000.0,0.00041096,30]
[405085464,1770772249242,-1000.0,0.00041096,30]
[405085465,1770772249251,-1000.0,0.00041096,30]
[405085466,1770772249261,-1000.0,0.00041096,30]
[405085467,1770772249271,-1000.0,0.00041096,30]
[405085468,1770772249281,-1000.0,0.00041096,30]
[405085469,1770772249290,-1000.0,0.00041096,30]
[405085470,1770772249299,-1000.0,0.00041096,30]
[405085471,1770772249309,-1000.0,0.00041096,30]
[405085472,1770772249319,-1000.0,0.00041096,30]
[405085473,1770772249328,-1000.0,0.00041096,30]
[405085474,1770772249338,-1000.0,0.00041096,30]
[405085475,1770772249349,-1000.0,0.00041096,30]
[405085476,1770772249359,-1000.0,0.00041096,30]
[405085477,1770772249369,-1000.0,0.00041096,30]
[405085478,1770772249378,-1000.0,0.00041096,30]
[405085479,1770772249387,-1000.0,0.00041096,30]
[405085480,1770772249397,-1000.0,0.00041096,30]
[405085481,1770772249406,-1000.0,0.00041096,30]
[405085482,1770772249416,-1000.0,0.00041096,30]
[405085483,1770772249425,-1000.0,0.00041096,30]
[405085484,1770772249435,-1000.0,0.00041096,30]
[405085485,1770772249445,-1000.0,0.00041096,30]
[405085486,1770772249455,-1000.0,0.00041096,30]
[405085487,1770772249464,-1000.0,0.00041096,30]
[405085488,1770772249473,-681.0,0.00041096,30]
[405085489,1770772249482,-886.0,0.00041096,120]
[405085490,1770772249492,-500.0,0.00041096,60]
[405085491,1770772249502,-151.0,0.000411,120]
[405085492,1770772249513,-12500.0,0.00041125,120]
[405085493,1770772249522,-22500.0,0.00041125,120]
[405085494,1770772249532,-1777.19862,0.00041125,120]
[405085495,1770772249542,-1777.19862,0.00041125,120]
[405085496,1770772249551,-1777.19863,0.00041125,120]
[405085497,1770772249562,-1777.19862,0.00041125,120]
[405085498,1770772249572,-1777.19863,0.00041125,120]
[405085499,1770772249582,-1777.19863,0.00041125,120]
[405085500,1770772249593,-500.0,0.00041136,45]
[405085501,1770772249603,-185.91,0.00041137,14]
[405085502,1770772249613,-500.0,0.00041151,60]
[405085503,1770772249625,-848.2,0.000412,14]
[405085504,1770772249635,-500.0,0.00041206,60]
[405085505,1770772249649,-200.0,0.00041212,7]
[405085506,1770772249663,-244.401987,0.00041233,120]
[405085507,1770772249673,-244.401987,0.00041233,120]
[405085508,1770772249685,-244.401987,0.00041233,120]
[405085509,1770772249695,-244.401987,0.00041233,120]
[405085510,1770772249706,-507.42899651,0.0004126,60]
[405085511,1770772249716,-350.0,0.00041273,2]
[405085512,1770772249728,-150.0,0.000413,41]
[405085513,1770772249738,-240.3,0.000413,41]
[405085514,1770772249754,-260.2726473,0.00041327,2]
[405085515,1770772249766,-5000.0,0.00041327,2]
[405085516,1770772249776,-1073.77881346,0.0004133,7]
[405085517,1770772249786,-1000.0,0.0004137,30]
[405085518,1770772249796,-200.0,0.0004137,8]
[405085519,1770772249806,-200.0,0.0004137,8]
[405085520,1770772249816,-200.0,0.0004137,8]
[405085521,1770772249826,-200.0,0.0004137,8]
[405085522,1770772249835,-200.0,0.0004137,8]
[405085523,1770772249845,-200.0,0.0004137,8]
[405085524,1770772249855,-200.0,0.0004137,8]
[405085525,1770772249865,-200.0,0.00041371,8]
[405085526,1770772249875,-200.0,0.00041371,8]
[405085527,1770772249885,-200.0,0.00041371,8]
[405085528,1770772249895,-500.0,0.000415,45]
[405085529,1770772249905,-500.0,0.000415,45]
[405085530,1770772249915,-500.0,0.000415,45]
[405085531,1770772249924,-500.0,0.000415,45]
[405085532,1770772249934,-500.0,0.000415,45]
[405085533,1770772249945,-500.0,0.000415,45]
[405085534,1770772249955,-500.0,0.000415,45]
[405085535,1770772249965,-500.0,0.000415,45]
[405085536,1770772249974,-500.0,0.000415,45]
[405085537,1770772249984,-500.0,0.000415,45]
[405085538,1770772249994,-500.0,0.000415,45]
[405085539,1770772250004,-500.0,0.000415,45]
[405085540,1770772250014,-500.0,0.000415,45]
[405085541,1770772250024,-500.0,0.000415,45]
[405085542,1770772250034,-500.0,0.000415,45]
[405085543,1770772250044,-500.0,0.000415,45]
[405085544,1770772250053,-500.0,0.000415,45]
[405085545,1770772250064,-500.0,0.000415,45]
[405085546,1770772250074,-500.0,0.000415,45]
[405085547,1770772250084,-500.0,0.000415,45]
[405085548,1770772250093,-500.0,0.000415,45]
[405085549,1770772250103,-500.0,0.000415,45]
[405085550,1770772250112,-500.0,0.000415,45]
[405085551,1770772250122,-12500.0,0.000415,120]
[405085552,1770772250131,-22500.0,0.000415,120]
[405085553,1770772250141,-9403.43808514,0.00041565,5]
[405085554,1770772250150,-5000.0,0.00041565,8]
[405085555,1770772250160,-5000.0,0.00041565,6]
[405085556,1770772250169,-17593.78231979,0.00041568,2]
[405085557,1770772250178,-200.0,0.00041624,7]
[405085558,1770772250188,-500.0,0.00041636,45]
[405085559,1770772250198,-1000.0,0.00041644,30]
[405085560,1770772250207,-2758.09308355,0.00041671,60]
[405085561,1770772250226,-18821.0,0.00041671,7]
[405085562,1770772250237,-153.04,0.00041775,120]
[405085563,1770772250247,-153.04,0.00041775,120]
[405085564,1770772250262,-350.0,0.0004183,2]
[405085565,1770772250274,-152.0,0.00041853,8]
[405085566,1770772250285,-153.04,0.00041875,120]
[405085567,1770772250296,-12500.0,0.00041875,120]
[405085568,1770772250307,-22499.99,0.00041875,120]
[405085569,1770772250317,-4243.5150929,0.000419,120]
[405085570,1770772250328,-319428.03757527,0.000419,14]
[405085571,1770772250338,-2211.13,0.000419,14]
[405085572,1770772250349,-153.0,0.000419,120]
[405085573,1770772250359,-151.0,0.000419,10]
[405085574,1770772250371,-151.0,0.000419,10]
[405085575,1770772250381,-151.0,0.000419,10]
[405085576,1770772250391,-188.846542,0.000419,120]
[405085577,1770772250401,-202.05642,0.000419,120]
[405085578,1770772250412,-151.0,0.000419,120]
[405085579,1770772250422,-151.0,0.000419,120]
[405085580,1770772250432,-151.0,0.000419,120]
[405085581,1770772250443,-151.0,0.000419,120]
[405085582,1770772250453,-151.0,0.000419,120]
[405085583,1770772250463,-151.0,0.000419,120]
[405085584,1770772250475,-151.0,0.000419,120]
[405085585,1770772250485,-151.0,0.000419,120]
[405085586,1770772250495,-151.0,0.000419,120]
[405085587,1770772250506,-151.0,0.000419,120]
[405085588,1770772250516,-151.0,0.000419,120]
[405085589,1770772250526,-151.0,0.000419,120]
[405085590,1770772250536,-151.0,0.000419,120]
[405085591,1770772250547,-151.0,0.000419,120]
[405085592,1770772250557,-151.0,0.000419,7]
[405085593,1770772250568,-176.908834,0.000419,14]
[405085594,1770772250579,-176.908834,0.000419,14]
[405085595,1770772250589,-176.908834,0.000419,14]
[405085596,1770772250599,-151.0,0.000419,120]
[405085597,1770772250609,-176.908834,0.000419,14]
[405085598,1770772250621,-151.0,0.000419,120]
[405085599,1770772250631,-151.0,0.000419,120]
[405085600,1770772250642,-151.0,0.000419,120]
[405085601,1770772250658,-151.0,0.000419,120]
[405085602,1770772250669,-151.0,0.000419,120]
[405085603,1770772250682,-151.0,0.000419,120]
[405085604,1770772250695,-151.0,0.000419,120]
[405085605,1770772250705,-151.0,0.000419,120]
[405085606,1770772250716,-151.0,0.000419,120]
[405085607,1770772250728,-151.0,0.000419,120]
[405085608,1770772250739,-151.0,0.000419,120]
[405085609,1770772250749,-151.0,0.000419,120]
[405085610,1770772250760,-151.0,0.000419,120]
[405085611,1770772250770,-151.0,0.000419,120]
[405085612,1770772250780,-320.905604,0.000419,120]
[405085613,1770772250790,-320.905604,0.000419,120]
[405085614,1770772250799,-151.0,0.000419,120]
[405085615,1770772250809,-320.905604,0.000419,120]
[405085616,1770772250819,-151.0,0.000419,7]
[405085617,1770772250829,-320.905604,0.000419,120]
[405085618,1770772250839,-151.0,0.000419,120]
[405085619,1770772250848,-193.804362,0.000419,120]
[405085620,1770772250858,-151.0,0.000419,120]
[405085621,1770772250868,-151.0,0.000419,120]
[405085622,1770772250878,-172.87322,0.000419,15]
[405085623,1770772250888,-172.87322,0.000419,15]
[405085624,1770772250897,-172.87322,0.000419,15]
[405085625,1770772250907,-172.87322,0.000419,15]
[405085626,1770772250916,-151.0,0.000419,120]
[405085627,1770772250926,-151.0,0.000419,120]
[405085628,1770772250935,-151.0,0.000419,120]
[405085629,1770772250945,-151.0,0.000419,120]
[405085630,1770772250956,-151.0,0.000419,120]
[405085631,1770772250965,-151.0,0.000419,120]
[405085632,1770772250975,-151.0,0.000419,120]
[405085633,1770772250987,-151.0,0.000419,120]
[405085634,1770772250996,-245.976016,0.000419,120]
[405085635,1770772251007,-151.0,0.000419,120]
[405085636,1770772251018,-151.0,0.000419,120]
[405085637,1770772251028,-157.571972,0.000419,120]
[405085638,1770772251038,-151.0,0.000419,120]
[405085639,1770772251048,-151.0,0.000419,120]
[405085640,1770772251058,-212.338594,0.000419,120]
[405085641,1770772251067,-151.0,0.000419,120]
[405085642,1770772251077,-151.0,0.000419,120]
[405085643,1770772251087,-151.0,0.000419,120]
[405085644,1770772251097,-151.0,0.000419,120]
[405085645,1770772251107,-206.50401755,0.000419,120]
[405085646,1770772251117,-151.0,0.000419,120]
[405085647,1770772251128,-151.0,0.000419,120]
[405085648,1770772251140,-151.0,0.000419,120]
[405085649,1770772251150,-151.0,0.000419,120]
[405085650,1770772251160,-151.0,0.000419,120]
[405085651,1770772251170,-151.0,0.000419,120]
[405085652,1770772251179,-151.0,0.000419,120]
[405085653,1770772251189,-151.0,0.000419,120]
[405085654,1770772251198,-151.0,0.000419,120]
[405085655,1770772251208,-151.0,0.000419,120]
[405085656,1770772251218,-151.0,0.000419,120]
[405085657,1770772251227,-1000.0,0.00041918,30]
[405085658,1770772251237,-505.0,0.00041924,13]
[405085659,1770772251246,-153.04,0.00041975,120]
[405085660,1770772251255,-332.67,0.00042,120]
[405085661,1770772251265,-531.01824611,0.00042,2]
[405085662,1770772251276,-2628.38518808,0.00042,120]
[405085663,1770772251286,-2552.44903197,0.00042,5]
[405085664,1770772251295,-150.99189841,0.00042,120]
[405085665,1770772251304,-10294.41660631,0.00042,120]
[405085666,1770772251313,-44058.07177249,0.00042,120]
[405085667,1770772251323,-881.29811983,0.00042,120]
[405085668,1770772251333,-46497.63439943,0.00042,30]
[405085669,1770772251343,-19237.65971624,0.00042,120]
[405085670,1770772251353,-217.38475982,0.00042,60]